bitfinex/quotes_BTCUSD_20250324
["timestamp","ask_amount","ask_price","bid_price","bid_amount"]
[1742805993663,0.528459,87543.0,87542.0,0.11957503]
[1742805994014,0.539881,87543.0,87542.0,0.11957503]
[1742805994654,0.539881,87543.0,87542.0,0.12357503]
[1742805994828,0.3,87543.0,87542.0,0.12357503]
[1742805995046,0.3,87544.0,87542.0,0.12357503]
[1742805995267,0.311422,87544.0,87543.0,0.11957503]
[1742805995468,0.3,87544.0,87543.0,0.11957503]
[1742805996444,0.528456,87544.0,87543.0,0.11957503]
[1742805997521,0.3,87544.0,87543.0,0.11957503]
[1742805997911,0.3,87544.0,87543.0,0.12357503]
[1742805998305,0.528456,87544.0,87543.0,0.12357503]
[1742805998491,0.539878,87544.0,87543.0,0.12357503]
[1742806005399,0.6215476,87544.0,87543.0,0.004]
[1742806005608,0.6215476,87544.0,87543.0,0.13248]
[1742806008097,0.6215476,87544.0,87543.0,0.1324]
[1742806013584,0.5400476,87544.0,87543.0,0.1324]
[1742806016477,0.5400476,87544.0,87543.0,0.13236]
[1742806016679,0.6195476,87544.0,87543.0,0.13236]
[1742806017288,0.6195476,87544.0,87543.0,0.48781603]
[1742806017289,0.0001696,87544.0,87543.0,0.48781603]
[1742806017731,0.0001696,87544.0,87543.0,0.49081603]
[1742806017978,0.0001696,87544.0,87543.0,0.52619178]
[1742806019059,0.0001696,87544.0,87543.0,0.95803263]
[1742806019276,0.0001696,87544.0,87543.0,0.82967263]
[1742806019486,0.0001696,87544.0,87543.0,0.70573078]
[1742806019677,0.0001696,87544.0,87543.0,0.94761178]
[1742806020075,0.0001696,87544.0,87543.0,0.94161178]
[1742806020597,0.0001696,87544.0,87543.0,0.94761178]
[1742806020979,0.0001696,87544.0,87543.0,0.95161178]
[1742806021523,0.0001696,87544.0,87543.0,0.71173078]
[1742806021657,0.0001696,87544.0,87543.0,0.95161178]
[1742806021866,0.0001696,87544.0,87543.0,0.95169178]
[1742806024410,0.0001696,87544.0,87543.0,0.91631603]
[1742806030906,0.0001696,87544.0,87543.0,1.48459603]
[1742806032046,0.0001696,87544.0,87543.0,1.11615503]
[1742806032247,0.6174476,87544.0,87543.0,0.57828]
[1742806032449,0.6651476,87544.0,87543.0,0.70692]
[1742806032650,0.6651476,87544.0,87543.0,0.70696]
[1742806032855,0.6651476,87544.0,87543.0,0.13868]
[1742806033294,0.6651476,87544.0,87543.0,0.12868]
[1742806033718,0.6651476,87544.0,87543.0,0.13468]
[1742806034157,0.6651476,87544.0,87543.0,0.13268]
[1742806034712,0.6651476,87544.0,87543.0,1e-06]
[1742806034913,1.4046766,87544.0,87543.0,1e-06]
[1742806035122,0.622495,87538.0,87537.0,0.0003392]
[1742806037302,0.622495,87538.0,87537.0,0.0013392]
[1742806042361,0.30563639,87544.0,87537.0,0.13233723]
[1742806042362,0.239886,87542.0,87537.0,0.13233723]
[1742806042567,0.011423,87541.0,87538.0,0.11957503]
[1742806042727,0.228469,87539.0,87538.0,0.11957503]
[1742806042926,0.528469,87539.0,87538.0,0.11957503]
[1742806043980,0.3,87539.0,87538.0,0.35947003]
[1742806044455,0.0001696,87544.0,87543.0,0.239881]
[1742806044674,0.0001696,87544.0,87543.0,0.35945603]
[1742806046134,0.0001696,87544.0,87543.0,0.36545603]
[1742806047283,0.0011696,87544.0,87543.0,0.36745603]
[1742806048191,0.0011696,87544.0,87543.0,0.78575603]
[1742806048457,0.0011696,87544.0,87543.0,0.54587503]
[1742806048629,0.2410476,87544.0,87543.0,0.67427503]
[1742806048806,0.5410476,87544.0,87543.0,0.67427503]
[1742806049809,0.5400476,87544.0,87543.0,0.54674]
[1742806050232,0.5400476,87544.0,87543.0,0.4253]
[1742806050674,0.5400476,87544.0,87543.0,0.5537]
[1742806050821,0.5400476,87544.0,87543.0,0.007]
[1742806051028,0.5400476,87544.0,87543.0,0.1354]
[1742806052441,0.5400476,87544.0,87543.0,0.1357392]
[1742806054008,0.3001696,87544.0,87543.0,0.49519523]
[1742806054376,0.3001696,87544.0,87543.0,0.25531423]
[1742806054576,0.2761696,87544.0,87543.0,0.48377323]
[1742806054978,0.0001696,87548.0,87543.0,0.48377323]
[1742806054979,0.0001696,87548.0,87547.0,0.228448]
[1742806055162,0.0001696,87548.0,87547.0,0.35944503]
[1742806056213,0.0001696,87548.0,87547.0,0.36344503]
[1742806056626,0.0001696,87548.0,87547.0,0.36544503]
[1742806060022,0.0001696,87548.0,87547.0,0.35402303]
[1742806060220,0.2400376,87548.0,87547.0,0.25417503]
[1742806060444,0.2400376,87548.0,87547.0,0.12557503]
[1742806060656,0.2400376,87548.0,87547.0,0.25417503]
[1742806061424,0.2400376,87548.0,87547.0,0.13456]
[1742806066625,0.2400776,87548.0,87547.0,0.13456]
[1742806066840,0.2400776,87548.0,87547.0,0.006]
[1742806067060,0.2400776,87548.0,87547.0,0.13448]
[1742806067794,0.2286556,87548.0,87547.0,0.13448]
[1742806068033,0.0002096,87548.0,87547.0,0.49392503]
[1742806068287,0.0002096,87548.0,87547.0,0.12557503]
[1742806068533,0.2286556,87548.0,87547.0,0.25405503]
[1742806068751,0.2400776,87548.0,87547.0,0.25405503]
[1742806069234,0.3199776,87548.0,87547.0,0.25405503]
[1742806069714,0.3199776,87548.0,87547.0,0.25401503]
[1742806069963,0.3199776,87548.0,87547.0,0.13444]
[1742806077139,0.2400776,87548.0,87547.0,0.13444]
[1742806079108,0.2400776,87548.0,87547.0,0.13452]
[1742806079488,0.0002096,87548.0,87547.0,0.25409503]
[1742806079642,0.0002096,87548.0,87547.0,0.49396503]
[1742806082858,0.0002096,87548.0,87547.0,0.12557503]
[1742806083066,0.2286556,87548.0,87547.0,0.25401503]
[1742806083265,0.0002096,87548.0,87547.0,0.25401503]
[1742806083457,0.0002096,87548.0,87547.0,0.48246303]
[1742806083876,0.0002096,87548.0,87547.0,0.49388503]
[1742806090372,0.0002096,87548.0,87547.0,0.62458503]
[1742806090587,0.0002096,87548.0,87547.0,1.07825928]
[1742806090820,0.0002096,87548.0,87547.0,1.08967116]
[1742806091027,0.0002096,87548.0,87547.0,1.07825928]
[1742806091258,0.0002096,87548.0,87547.0,1.09780013]
[1742806091464,0.0002096,87548.0,87547.0,1.09180013]
[1742806091659,0.0002096,87548.0,87547.0,1.09780013]
[1742806091858,0.0012096,87548.0,87547.0,1.09980013]
[1742806092362,0.0012096,87548.0,87547.0,1.09380013]
[1742806092660,0.0012096,87548.0,87547.0,1.09980013]
[1742806093066,0.0012096,87548.0,87547.0,1.09480013]
[1742806093533,0.0012096,87548.0,87547.0,1.08025928]
[1742806093738,0.0012096,87548.0,87547.0,0.95031928]
[1742806093975,0.0012096,87548.0,87547.0,0.91494503]
[1742806095709,0.0012096,87548.0,87547.0,0.90352303]
[1742806095919,0.0012096,87548.0,87547.0,0.67511503]
[1742806096076,0.0012096,87548.0,87547.0,0.90356303]
[1742806096273,0.0012096,87548.0,87547.0,0.91498503]
[1742806103519,0.0002096,87548.0,87547.0,0.91298503]
[1742806104288,0.0002096,87548.0,87547.0,0.90698503]
[1742806104489,0.0002096,87548.0,87547.0,0.91298503]
[1742806104928,0.0002096,87548.0,87547.0,0.91698503]
[1742806105750,0.0002096,87548.0,87547.0,0.91714503]
[1742806111914,0.2286556,87548.0,87547.0,0.67727503]
[1742806112252,0.0002096,87548.0,87547.0,0.67727503]
[1742806112478,0.2400776,87548.0,87547.0,0.67727503]
[1742806112704,0.2400776,87548.0,87547.0,0.54787503]
[1742806112874,0.2400776,87548.0,87547.0,0.67703503]
[1742806113080,0.0002096,87548.0,87547.0,0.67703503]
[1742806113702,0.2286556,87548.0,87547.0,0.67703503]
[1742806113922,0.2286556,87548.0,87547.0,0.67699503]
[1742806114283,0.0002096,87548.0,87547.0,0.68841703]
[1742806114695,0.0002096,87548.0,87547.0,0.91686503]
[1742806115260,0.0002096,87548.0,87547.0,0.97650588]
[1742806115466,0.0002096,87548.0,87547.0,1.01189355]
[1742806121401,0.0002096,87548.0,87547.0,0.96679355]
[1742806121608,0.0002096,87548.0,87547.0,0.9522527]
[1742806122152,0.0002096,87548.0,87547.0,0.91686503]
[1742806123227,0.0002096,87548.0,87547.0,0.91690503]
[1742806125664,0.0002096,87548.0,87547.0,0.91678503]
[1742806126570,0.0002096,87548.0,87547.0,0.91686503]
[1742806130135,0.0002096,87548.0,87547.0,1.48506503]
[1742806136625,0.0002096,87548.0,87547.0,1.52043888]
[1742806140564,0.0002096,87548.0,87547.0,1.53497973]
[1742806140752,6.5e-07,87555.0,87552.0,0.228435]
[1742806140955,2.5e-07,87569.0,87562.0,0.005]
[1742806141157,2.5e-07,87569.0,87568.0,0.37392788]
[1742806141361,2.5e-07,87569.0,87568.0,0.79222788]
[1742806141596,2.5e-07,87569.0,87568.0,0.82760173]
[1742806142953,2.5e-07,87569.0,87568.0,0.8503827]
[1742806143183,2.5e-07,87569.0,87568.0,0.560656]
[1742806143392,2.5e-07,87569.0,87568.0,0.689696]
[1742806143844,2.5e-07,87569.0,87568.0,0.695696]
[1742806144043,2.5e-07,87569.0,87568.0,0.924089]
[1742806144242,2.5e-07,87569.0,87568.0,0.695696]
[1742806144456,2.5e-07,87569.0,87568.0,0.701696]
[1742806144678,2.5e-07,87569.0,87568.0,0.941508]
[1742806145965,2.5e-07,87569.0,87568.0,0.812468]
[1742806146186,2.5e-07,87569.0,87568.0,0.941508]
[1742806149980,2.5e-07,87569.0,87568.0,1.509628]
[1742806152189,0.0816,87586.0,87568.0,1.509628]
[1742806152190,5.8e-07,87622.0,87606.0,0.025]
[1742806152396,5.8e-07,87622.0,87608.0,0.35927803]
[1742806152600,0.011413,87617.0,87608.0,0.11957503]
[1742806152829,0.09868493,87620.0,87608.0,0.35927803]
[1742806152830,0.08727293,87620.0,87608.0,0.35927803]
[1742806153053,0.013413,87619.0,87608.0,0.13957503]
[1742806153262,0.259701,87609.0,87608.0,0.16221384]
[1742806153472,0.259701,87609.0,87608.0,0.11957503]
[1742806154446,0.636401,87609.0,87608.0,0.12957503]
[1742806154665,0.636401,87609.0,87608.0,0.006]
[1742806154865,0.636401,87609.0,87608.0,0.01]
[1742806155702,0.636401,87609.0,87608.0,0.006]
[1742806155865,0.539703,87608.0,87607.0,0.13036]
[1742806156499,0.228313,87599.0,87591.0,0.034308]
[1742806156679,0.239728,87599.0,87592.0,0.25001503]
[1742806156879,0.239728,87599.0,87592.0,0.11957503]
[1742806157198,0.239728,87599.0,87593.0,0.1304]
[1742806157398,0.228306,87602.0,87594.0,0.11957503]
[1742806157605,0.011415,87601.0,87594.0,0.11957503]
[1742806157783,0.228312,87600.0,87594.0,0.11957503]
[1742806158513,0.228314,87599.0,87594.0,0.11957503]
[1742806159172,0.228316,87598.0,87594.0,0.11957503]
[1742806159380,0.228316,87598.0,87594.0,0.12057503]
[1742806159511,0.228314,87599.0,87594.0,0.12357503]
[1742806159702,0.228316,87598.0,87594.0,0.12357503]
[1742806159902,0.228319,87597.0,87594.0,0.12357503]
[1742806160100,0.228319,87597.0,87594.0,0.12057503]
[1742806160325,0.228319,87597.0,87594.0,0.12457503]
[1742806160558,0.228322,87596.0,87594.0,0.12457503]
[1742806160736,0.239738,87596.0,87594.0,0.12357503]
[1742806160942,0.318839,87595.0,87594.0,0.12157503]
[1742806161189,0.318839,87595.0,87594.0,0.12557503]
[1742806161345,0.318839,87595.0,87594.0,0.12357503]
[1742806161544,0.318839,87595.0,87594.0,0.12557503]
[1742806161820,0.011415,87600.0,87594.0,0.12557503]
[1742806161821,0.3,87605.0,87594.0,0.12357503]
[1742806162027,0.079,87604.0,87595.0,0.228321]
[1742806162232,0.079,87604.0,87596.0,0.11957503]
[1742806162434,0.3,87603.0,87596.0,0.11957503]
[1742806162729,0.528303,87603.0,87596.0,0.11957503]
[1742806162936,0.539718,87603.0,87596.0,0.11957503]
[1742806163138,0.3,87601.0,87596.0,0.11957503]
[1742806163555,0.379,87604.0,87596.0,0.12257503]
[1742806163754,0.228305,87602.0,87596.0,0.12257503]
[1742806163937,0.3,87601.0,87596.0,0.12257503]
[1742806164134,0.3,87601.0,87596.0,0.11957503]
[1742806164546,0.3,87601.0,87596.0,0.12257503]
[1742806164730,0.228317,87598.0,87596.0,0.12257503]
[1742806164934,0.228318,87597.0,87596.0,0.12357503]
[1742806165279,0.228317,87598.0,87596.0,0.12257503]
[1742806165502,0.228317,87598.0,87596.0,0.12357503]
[1742806165672,0.228317,87598.0,87596.0,0.12257503]
[1742806165977,0.228313,87599.0,87596.0,0.11957503]
[1742806166201,0.3,87605.0,87596.0,0.12357503]
[1742806166403,0.3,87602.0,87596.0,0.12357503]
[1742806166741,0.3,87602.0,87596.0,0.11957503]
[1742806167179,0.3,87602.0,87596.0,0.12357503]
[1742806167379,0.3,87602.0,87596.0,0.12557503]
[1742806167607,0.079,87604.0,87597.0,0.011415]
[1742806167803,0.079,87604.0,87598.0,0.11957503]
[1742806168012,0.079,87604.0,87600.0,0.239725]
[1742806168249,0.079,87604.0,87601.0,0.34788103]
[1742806168788,0.079,87604.0,87601.0,0.11957503]
[1742806168987,0.079,87604.0,87601.0,0.34788203]
[1742806169219,0.079,87604.0,87602.0,0.25075102]
[1742806169420,0.00070901,87611.0,87608.0,0.011414]
[1742806169629,0.00070901,87611.0,87608.0,0.48939803]
[1742806170081,0.0196696,87609.0,87608.0,0.90769803]
[1742806170731,0.0196696,87609.0,87608.0,0.93036703]
[1742806170945,0.0196696,87609.0,87608.0,0.91899303]
[1742806171161,0.0196696,87609.0,87608.0,0.93040703]
[1742806171356,0.0196696,87609.0,87608.0,0.93340703]
[1742806172314,0.0196696,87609.0,87608.0,0.79724703]
[1742806172517,0.0196696,87609.0,87608.0,0.93332703]
[1742806172819,0.0196696,87609.0,87608.0,0.92191303]
[1742806173023,0.0196696,87609.0,87608.0,0.79724703]
[1742806173258,0.0196696,87609.0,87608.0,0.92728703]
[1742806173473,0.0001696,87609.0,87608.0,0.93328703]
[1742806173663,0.0001696,87609.0,87608.0,0.93828703]
[1742806174018,0.0001696,87609.0,87608.0,0.93328703]
[1742806174225,0.0001696,87609.0,87608.0,0.93728703]
[1742806174653,0.01196929,87627.0,87620.0,0.228257]
[1742806174852,0.01196929,87627.0,87621.0,0.24965503]
[1742806175646,0.01196929,87627.0,87622.0,0.228253]
[1742806175851,0.01196929,87627.0,87626.0,0.239654]
[1742806176051,0.01196929,87627.0,87626.0,0.35922903]
[1742806176550,0.01196929,87627.0,87626.0,0.34781703]
[1742806176700,0.01196929,87627.0,87626.0,0.11957503]
[1742806177322,0.01196929,87627.0,87626.0,0.12157503]
[1742806177732,0.08836929,87627.0,87626.0,0.25149503]
[1742806177910,0.09978129,87627.0,87626.0,0.25149503]
[1742806178119,0.32802129,87627.0,87626.0,0.25149503]
[1742806178750,0.32792423,87627.0,87626.0,0.25145503]
[1742806180153,0.32792423,87627.0,87626.0,0.12157503]
[1742806180389,0.32792423,87627.0,87626.0,0.25137503]
[1742806182142,0.32809383,87627.0,87626.0,0.25137503]
[1742806184239,0.08844183,87627.0,87626.0,0.25137503]
[1742806186290,0.31668183,87627.0,87626.0,0.25137503]
[1742806186540,0.08844183,87627.0,87626.0,0.25137503]
[1742806189037,0.07175873,87627.0,87626.0,0.25137503]
[1742806189209,0.06937543,87627.0,87626.0,0.25137503]
[1742806189829,0.06937543,87627.0,87626.0,0.24937503]
[1742806190182,0.06937543,87627.0,87626.0,0.25137503]
[1742806190713,0.06937543,87627.0,87626.0,0.25237503]
[1742806193282,0.0001696,87627.0,87626.0,0.49236823]
[1742806194036,0.0001696,87627.0,87626.0,0.36256823]
[1742806194360,0.0001696,87627.0,87626.0,0.49252823]
[1742806194562,0.0001696,87627.0,87626.0,0.48111623]
[1742806195347,0.0113327,87632.0,87629.0,0.228234]
[1742806195348,0.0105023,87632.0,87629.0,0.228234]
[1742806195549,0.05,87633.0,87630.0,0.11957503]
[1742806195953,0.528229,87631.0,87630.0,0.11957503]
[1742806196354,0.3,87631.0,87630.0,0.11957503]
[1742806197756,0.3,87631.0,87630.0,0.34780703]
[1742806198091,0.05,87633.0,87631.0,0.228228]
[1742806198315,0.05,87633.0,87632.0,0.11957503]
[1742806200408,0.05,87633.0,87632.0,0.12057503]
[1742806200978,0.05,87633.0,87632.0,0.11957503]
[1742806201394,0.289635,87633.0,87632.0,0.11957503]
[1742806202131,0.289675,87633.0,87632.0,0.11957503]
[1742806202558,0.289675,87633.0,87632.0,0.12157503]
[1742806202958,0.278264,87633.0,87632.0,0.12157503]
[1742806203828,0.289675,87633.0,87632.0,0.12157503]
[1742806204212,0.289675,87633.0,87632.0,0.25145503]
[1742806204879,0.289675,87633.0,87632.0,0.12157503]
[1742806205089,0.670075,87633.0,87632.0,0.25141503]
[1742806205237,0.670075,87633.0,87632.0,0.25175423]
[1742806205440,0.6702446,87633.0,87632.0,0.25175423]
[1742806206436,0.6702446,87633.0,87632.0,0.0023392]
[1742806206635,0.6702446,87633.0,87632.0,0.1324992]
[1742806206880,0.68478545,87633.0,87632.0,0.0023392]
[1742806207054,0.73418545,87633.0,87632.0,0.0023392]
[1742806208667,0.73418545,87633.0,87632.0,0.0003392]
[1742806208848,0.73418545,87633.0,87632.0,0.0013392]
[1742806209246,0.73318545,87633.0,87632.0,0.0013392]
[1742806209492,2.40798345,87633.0,87632.0,2e-07]
[1742806209692,0.73318545,87633.0,87632.0,2e-07]
[1742806210274,0.63219285,87627.0,87626.0,0.0003392]
[1742806212288,0.63319285,87627.0,87626.0,0.0003392]
[1742806213288,0.68529285,87627.0,87626.0,0.0003392]
[1742806215039,0.68533285,87627.0,87626.0,0.0003392]
[1742806217489,3.01778185,87627.0,87626.0,0.0003392]
[1742806217720,2.23366585,87627.0,87626.0,2e-07]
[1742806217854,0.68533285,87627.0,87626.0,2e-07]
[1742806218570,0.539689,87613.0,87612.0,0.12992]
[1742806218785,0.62922985,87613.0,87612.0,0.12992]
[1742806218951,0.539701,87609.0,87598.0,0.4183]
[1742806219152,0.539701,87609.0,87607.0,0.12992]
[1742806219153,0.60014185,87609.0,87607.0,0.12992]
[1742806220720,0.60014185,87609.0,87608.0,0.0013392]
[1742806222604,0.60018185,87609.0,87608.0,0.0013392]
[1742806224901,0.619333,87597.0,87596.0,0.000339]
[1742806226039,0.619333,87597.0,87596.0,0.001339]
[1742806226251,0.620333,87597.0,87596.0,0.001339]
[1742806228440,0.620373,87597.0,87596.0,0.001339]
[1742806230221,0.620373,87597.0,87596.0,0.130939]
[1742806232091,0.620373,87597.0,87596.0,0.001339]
[1742806232298,0.620373,87597.0,87596.0,0.130819]
[1742806232749,0.540773,87597.0,87596.0,0.25039403]
[1742806233191,0.529358,87597.0,87596.0,0.25039403]
[1742806233390,0.540773,87597.0,87596.0,0.25039403]
[1742806245902,0.540773,87597.0,87596.0,0.24991403]
[1742806249352,0.540773,87597.0,87596.0,0.130339]
[1742806255531,0.540773,87597.0,87596.0,0.129979]
[1742806256101,0.540773,87597.0,87596.0,0.001339]
[1742806256251,0.622073,87597.0,87596.0,0.001339]
[1742806258471,0.540773,87597.0,87596.0,0.12091403]
[1742806263457,0.00104,87597.0,87596.0,0.12091403]
[1742806263662,0.00104,87597.0,87596.0,0.43845003]
[1742806263901,0.00104,87597.0,87596.0,0.48395003]
[1742806264110,0.00104,87597.0,87596.0,0.51833389]
[1742806264501,0.00104,87597.0,87596.0,0.51933389]
[1742806264699,0.0001696,87608.0,87607.0,0.239706]
[1742806264948,0.0001696,87608.0,87607.0,0.35928103]
[1742806265302,0.228265,87618.0,87613.0,0.228276]
[1742806265509,0.228267,87617.0,87614.0,0.11957503]
[1742806265716,0.239684,87615.0,87614.0,0.11957503]
[1742806266448,0.539684,87615.0,87614.0,0.11957503]
[1742806267397,0.539684,87615.0,87614.0,0.49296903]
[1742806267398,0.3,87615.0,87614.0,0.49296903]
[1742806267591,0.3,87615.0,87614.0,0.26469503]
[1742806267850,0.539684,87615.0,87614.0,0.26569503]
[1742806268673,0.539684,87615.0,87614.0,0.26869503]
[1742806271731,0.539684,87615.0,87614.0,0.12357503]
[1742806271935,0.539684,87615.0,87614.0,0.26985503]
[1742806272541,0.539684,87615.0,87614.0,0.27290103]
[1742806272890,0.622384,87615.0,87614.0,0.27290103]
[1742806274130,0.622384,87615.0,87614.0,0.007046]
[1742806274517,0.6402555,87615.0,87614.0,0.007046]
[1742806278008,0.6404251,87615.0,87614.0,0.007046]
[1742806278566,0.70046595,87615.0,87614.0,0.007046]
[1742806279571,0.70046595,87615.0,87596.0,0.000339]
[1742806279572,0.539733,87597.0,87596.0,0.000339]
[1742806279768,0.539733,87597.0,87596.0,0.26575403]
[1742806281448,0.539733,87597.0,87596.0,0.000339]
[1742806281857,0.539733,87597.0,87596.0,0.003339]
[1742806283491,0.55427385,87597.0,87596.0,0.003339]
[1742806284538,0.55427385,87597.0,87596.0,0.002339]
[1742806284766,0.55427385,87597.0,87596.0,0.000339]
[1742806284969,0.55427385,87597.0,87596.0,0.001339]
[1742806285522,0.55527385,87597.0,87596.0,0.000339]
[1742806286131,0.540733,87597.0,87596.0,0.000339]
[1742806286445,0.540733,87597.0,87596.0,0.11991403]
[1742806287625,0.539733,87597.0,87596.0,0.11991403]
[1742806287857,0.539733,87597.0,87596.0,0.12091403]
[1742806288363,0.239788,87577.0,87576.0,0.4183]
[1742806288571,0.239788,87577.0,87576.0,0.68539503]
[1742806290511,0.239788,87577.0,87576.0,0.69139503]
[1742806291093,0.239788,87577.0,87576.0,0.69539503]
[1742806295775,0.228365,87579.0,87576.0,0.69539503]
[1742806295969,0.239788,87577.0,87576.0,0.57582]
[1742806296196,0.239788,87577.0,87576.0,0.69539503]
[1742806296325,0.228357,87582.0,87576.0,0.70681303]
[1742806296526,0.01134567,87583.0,87578.0,0.228365]
[1742806296763,0.311417,87584.0,87579.0,0.11957503]
[1742806296764,0.228362,87580.0,87579.0,0.11957503]
[1742806296935,0.23978,87580.0,87579.0,0.11957503]
[1742806297375,0.0815,87603.0,87584.0,0.011417]
[1742806297574,0.011416,87594.0,87586.0,0.239763]
[1742806297777,0.228341,87588.0,87587.0,0.11957503]
[1742806298956,0.228341,87588.0,87587.0,0.12057503]
[1742806299195,0.239758,87588.0,87587.0,0.12057503]
[1742806300231,0.011416,87592.0,87587.0,0.12057503]
[1742806300556,0.228341,87588.0,87587.0,0.12057503]
[1742806300759,0.239758,87588.0,87587.0,0.12057503]
[1742806301231,0.239758,87588.0,87587.0,0.12257503]
[1742806302205,0.239758,87588.0,87587.0,0.12357503]
[1742806306370,0.239758,87588.0,87587.0,0.26949503]
[1742806307740,0.239758,87588.0,87587.0,0.12357503]
[1742806307930,0.314958,87588.0,87587.0,0.26937503]
[1742806308895,0.614958,87588.0,87587.0,0.12357503]
[1742806309107,0.614958,87588.0,87587.0,0.15008]
[1742806311594,0.539758,87588.0,87587.0,0.26933503]
[1742806311795,0.239758,87588.0,87587.0,0.26933503]
[1742806315322,0.239758,87588.0,87587.0,0.26967443]
[1742806316216,0.321658,87588.0,87587.0,0.26967443]
[1742806316675,0.33619885,87588.0,87587.0,0.0043394]
[1742806317639,0.321658,87588.0,87587.0,0.0043394]
[1742806317841,0.3,87589.0,87587.0,0.12391443]
[1742806318036,0.3,87590.0,87588.0,0.11957503]
[1742806318273,0.011416,87595.0,87588.0,0.11957503]
[1742806318600,0.228331,87592.0,87588.0,0.11957503]
[1742806318792,0.011416,87593.0,87588.0,0.11957503]
[1742806318997,0.0001697,87596.0,87595.0,0.239739]
[1742806319308,0.0001697,87596.0,87595.0,0.35931403]
[1742806319510,0.0001697,87596.0,87595.0,0.11957503]
[1742806320207,0.2284897,87596.0,87595.0,0.11957503]
[1742806320386,0.2399057,87596.0,87595.0,0.11957503]
[1742806320770,0.2399057,87596.0,87595.0,0.12357503]
[1742806320972,0.0001697,87596.0,87595.0,0.12357503]
[1742806321894,0.0001697,87596.0,87595.0,0.12657503]
[1742806322102,0.2284897,87596.0,87595.0,0.12657503]
[1742806322309,0.0001697,87596.0,87595.0,0.36631403]
[1742806322522,0.0001697,87596.0,87595.0,0.35489803]
[1742806322724,0.0001697,87596.0,87595.0,0.12657503]
[1742806323150,0.2284897,87596.0,87595.0,0.12657503]
[1742806324421,0.2399057,87596.0,87595.0,0.12657503]
[1742806327145,0.2399057,87596.0,87595.0,0.12691423]
[1742806327761,0.2399057,87596.0,87595.0,0.27195423]
[1742806327974,0.2399057,87596.0,87595.0,0.12691423]
[1742806328201,0.2399057,87596.0,87595.0,0.27199423]
[1742806328615,0.2399057,87596.0,87595.0,0.27191423]
[1742806332102,0.6182057,87596.0,87595.0,0.0073392]
[1742806332533,0.63608079,87596.0,87595.0,0.0033392]
[1742806332923,0.63608079,87596.0,87595.0,0.0003392]
[1742806335740,0.63608079,87596.0,87595.0,0.0013392]
[1742806338292,0.63608079,87596.0,87595.0,0.12091423]
[1742806338512,0.55778079,87596.0,87595.0,0.12091423]
[1742806339309,0.25778079,87596.0,87595.0,0.12091423]
[1742806339525,0.2284897,87596.0,87595.0,0.12091423]
[1742806340055,0.2399057,87596.0,87595.0,0.12091423]
[1742806341086,0.0001697,87596.0,87595.0,0.12091423]
[1742806341500,0.0001697,87596.0,87595.0,0.36065323]
[1742806341702,0.0001697,87596.0,87595.0,0.12091423]
[1742806342305,0.0001697,87596.0,87595.0,0.34923723]
[1742806342507,0.0001697,87596.0,87595.0,0.34823723]
[1742806342765,0.0001697,87596.0,87595.0,0.36365323]
[1742806343183,0.0001697,87596.0,87595.0,0.36665323]
[1742806344038,0.0001697,87596.0,87595.0,0.83155323]
[1742806344209,0.0001697,87596.0,87595.0,0.91275323]
[1742806345295,0.0001697,87596.0,87595.0,0.90575323]
[1742806345502,0.0001697,87596.0,87595.0,0.91175323]
[1742806345694,0.0001697,87596.0,87595.0,0.91775323]
[1742806349145,0.0001697,87596.0,87595.0,0.95303435]
[1742806349766,0.011414,87610.0,87604.0,0.228299]
[1742806349974,0.228294,87607.0,87605.0,0.68647503]
[1742806350185,0.2397,87610.0,87605.0,0.68647503]
[1742806350390,0.228281,87612.0,87608.0,0.228289]
[1742806350570,0.228281,87612.0,87605.0,0.578314]
[1742806350571,0.011414,87611.0,87605.0,0.578314]
[1742806350765,0.228284,87610.0,87609.0,0.11957503]
[1742806351033,0.228282,87611.0,87609.0,0.11957503]
[1742806351447,0.228284,87610.0,87609.0,0.11957503]
[1742806351665,0.239698,87610.0,87609.0,0.11957503]
[1742806351822,0.228282,87611.0,87609.0,0.11957503]
[1742806352073,0.239696,87611.0,87609.0,0.12257503]
[1742806352209,0.228279,87612.0,87609.0,0.35086103]
[1742806352416,0.228279,87612.0,87610.0,0.14856]
[1742806352634,0.239692,87612.0,87611.0,0.11957503]
[1742806355012,0.239692,87612.0,87611.0,0.12457503]
[1742806355013,0.539692,87612.0,87611.0,0.12457503]
[1742806356050,0.539692,87612.0,87611.0,0.27557503]
[1742806357156,0.539692,87612.0,87611.0,0.27057503]
[1742806357653,0.539692,87612.0,87611.0,0.27457503]
[1742806358081,0.539692,87612.0,87611.0,0.26757503]
[1742806358521,0.539692,87612.0,87611.0,0.26957503]
[1742806358651,0.53515485,87612.0,87611.0,0.26957503]
[1742806359274,0.53515485,87612.0,87611.0,0.26985503]
[1742806361157,0.23515485,87612.0,87611.0,0.26985503]
[1742806361599,0.23515485,87612.0,87611.0,0.26965503]
[1742806361809,0.3806,87614.0,87613.0,0.228276]
[1742806362009,0.0001696,87615.0,87613.0,0.11957503]
[1742806362208,0.5398586,87615.0,87614.0,0.11957503]
[1742806364306,0.0001696,87615.0,87614.0,0.13098803]
[1742806364511,0.0001696,87615.0,87614.0,0.36126203]
[1742806364922,0.0001696,87615.0,87614.0,0.34984903]
[1742806365130,0.0001696,87615.0,87614.0,0.12157503]
[1742806365333,0.0001696,87615.0,87614.0,0.12257503]
[1742806365533,0.0001696,87615.0,87614.0,0.12157503]
[1742806365742,0.2284406,87615.0,87614.0,0.12157503]
[1742806365943,0.2284406,87615.0,87614.0,0.12357503]
[1742806366570,0.2284406,87615.0,87614.0,0.12157503]
[1742806366970,0.0001696,87615.0,87614.0,0.42620703]
[1742806367387,0.0001696,87615.0,87614.0,0.19793303]
[1742806367834,0.0001696,87615.0,87614.0,0.42620703]
[1742806368029,0.0001696,87615.0,87614.0,0.35153303]
[1742806368572,0.0001696,87615.0,87614.0,0.57980703]
[1742806368767,0.0001696,87615.0,87614.0,0.59122003]
[1742806368968,0.0001696,87615.0,87614.0,0.57980703]
[1742806369427,0.0001696,87615.0,87614.0,0.35153303]
[1742806369625,0.0001696,87615.0,87614.0,0.57980703]
[1742806372546,0.0001696,87615.0,87614.0,0.35153303]
[1742806372754,0.0001696,87615.0,87614.0,0.57980703]
[1742806372929,0.0001696,87615.0,87614.0,0.35153303]
[1742806373142,0.0001696,87615.0,87614.0,0.57980703]
[1742806373290,0.0001696,87615.0,87614.0,0.59122003]
[1742806374105,0.3184536,87615.0,87614.0,0.35177303]
[1742806374507,0.3184536,87615.0,87614.0,0.35577303]
[1742806374730,0.3184536,87615.0,87614.0,0.35561303]
[1742806375351,0.3184536,87615.0,87614.0,0.35553303]